lending/lending_fUSD_20250121
["ID","MTS","AMOUNT","RATE_DAILY","PERIOD"]
[349849543,1737460237769,-504.03284647,0.00019178,2]
[349849544,1737460237778,-500.0,0.00019178,2]
[349849545,1737460237787,-613.78,0.00019178,2]
[349849546,1737460237796,-500.0,0.00019178,2]
[349849547,1737460237805,-500.0,0.00019178,2]
[349849548,1737460237815,-500.0,0.00019178,2]
[349849549,1737460237825,-556.66641326,0.00019178,2]
[349849550,1737460237835,-500.0,0.00019178,2]
[349849551,1737460237845,-500.0,0.00019178,2]
[349849552,1737460237854,-882.13,0.00019178,2]
[349849553,1737460237863,-500.0,0.00019178,2]
[349849554,1737460237873,-500.67,0.00019178,2]
[349849555,1737460237883,-502.12141267,0.00019178,2]
[349849556,1737460237895,-500.0,0.00019178,2]
[349849557,1737460237904,-1528.91,0.00019178,2]
[349849558,1737460237914,-852.25,0.00019178,2]
[349849559,1737460237926,-500.0,0.00019178,2]
[349849560,1737460237935,-504.36495375,0.00019178,2]
[349849561,1737460237944,-500.0,0.00019178,2]
[349849562,1737460237954,-500.0,0.00019178,2]
[349849563,1737460237965,-504.21320452,0.00019178,2]
[349849564,1737460237974,-500.0,0.00019178,2]
[349849565,1737460237984,-419.03340695,0.00019178,2]
[349849566,1737460237994,-607.87,0.00019178,2]
[349849567,1737460238004,-500.0,0.00019178,2]
[349849568,1737460238015,-500.0,0.00019178,2]
[349849569,1737460238024,-500.0,0.00019178,2]
[349849570,1737460238034,-500.0,0.00019178,2]
[349849571,1737460238043,-503.76437446,0.00019178,2]
[349849572,1737460238054,-500.0,0.00019178,2]
[349849574,1737460238063,-500.0,0.00019178,2]
[349849575,1737460238075,-502.66325172,0.00019178,2]
[349849576,1737460238084,-500.0,0.00019178,2]
[349849577,1737460238093,-500.0,0.00019178,2]
[349849578,1737460238103,-500.0,0.00019178,2]
[349849579,1737460238113,-737.54,0.00019178,2]
[349849580,1737460238122,-500.0,0.00019178,2]
[349849581,1737460238132,-500.0,0.00019178,2]
[349849582,1737460238142,-1449.03,0.00019178,2]
[349849583,1737460238151,-500.0,0.00019178,2]
[349849584,1737460238161,-500.0,0.00019178,2]
[349849585,1737460238171,-509.50403772,0.00019178,2]
[349849586,1737460238180,-503.21581185,0.00019178,2]
[349849587,1737460238189,-501.9140417,0.00019178,2]
[349849588,1737460238199,-500.0,0.00019178,2]
[349849589,1737460238209,-500.0,0.00019178,2]
[349849590,1737460238218,-500.0,0.00019178,2]
[349849591,1737460238227,-519.37538825,0.00019178,2]
[349849592,1737460238242,-12.70461175,0.00019178,2]
[349849593,1737460238251,-503.78223036,0.00019178,2]
[349849594,1737460238261,-500.0,0.00019178,2]
[349849595,1737460238271,-500.0,0.00019178,2]
[349849596,1737460238280,-503.63525526,0.00019178,2]
[349849597,1737460238290,-500.0,0.00019178,2]
[349849598,1737460238299,-557.03539044,0.00019178,2]
[349849599,1737460238309,-955.9,0.00019178,2]
[349849600,1737460238319,-504.27509728,0.00019178,2]
[349849601,1737460238331,-500.0,0.00019178,2]
[349849602,1737460238340,-500.0,0.00019178,2]
[349849603,1737460238349,-500.0,0.00019178,2]
[349849604,1737460238359,-500.0,0.00019178,2]
[349849605,1737460238368,-500.0,0.00019178,2]
[349849606,1737460238378,-545.68,0.00019178,2]
[349849607,1737460238387,-500.0,0.00019178,2]
[349849608,1737460238397,-500.0,0.00019178,2]
[349849609,1737460238407,-501.27623828,0.00019178,2]
[349849610,1737460238417,-500.0,0.00019178,2]
[349849611,1737460238427,-505.34419201,0.00019178,2]
[349849612,1737460238437,-507.80571988,0.00019178,2]
[349849613,1737460238446,-507.57303565,0.00019178,2]
[349849614,1737460238456,-508.9,0.00019178,2]
[349849615,1737460238466,-583.49,0.00019178,2]
[349849616,1737460238476,-500.0,0.00019178,2]
[349849617,1737460238485,-507.84520989,0.00019178,2]
[349849618,1737460238495,-500.0,0.00019178,2]
[349849619,1737460238505,-602.22,0.00019178,2]
[349849620,1737460238515,-500.0,0.00019178,2]
[349849621,1737460238524,-832.94,0.00019178,2]
[349849622,1737460238534,-504.93232363,0.00019178,2]
[349849626,1737460238720,-500.0,0.00019178,2]
[349849628,1737460238729,-500.0,0.00019178,2]
[349849630,1737460238739,-500.0,0.00019178,2]
[349849632,1737460238749,-500.0,0.00019178,2]
[349849634,1737460238758,-500.0,0.00019178,2]
[349849636,1737460238768,-1056.77,0.00019178,2]
[349849638,1737460238778,-500.0,0.00019178,2]
[349849640,1737460238787,-386.06187454,0.00019178,2]
[349849642,1737460238796,-507.57022789,0.00019178,2]
[349849644,1737460238806,-166.8928346,0.00019178,2]
[349849646,1737460238816,-500.0,0.00019178,2]
[349849648,1737460238827,-500.0,0.00019178,2]
[349849650,1737460238837,-500.0,0.00019178,2]
[349849652,1737460238846,-500.0,0.00019178,2]
[349849654,1737460238856,-507.85967645,0.00019178,2]
[349849656,1737460238866,-500.0,0.00019178,2]
[349849658,1737460238876,-1241.4,0.00019178,2]
[349849660,1737460238894,-500.0,0.00019178,2]
[349849662,1737460238904,-636.17,0.00019178,2]
[349849664,1737460238914,-1237.2,0.00019178,2]
[349849666,1737460238925,-1234.67,0.00019178,2]
[349849668,1737460238935,-557.5395686,0.00019178,2]
[349849669,1737460238944,-500.0,0.00019178,2]
[349849670,1737460238954,-500.0,0.00019178,2]
[349849671,1737460238965,-213.11146801,0.00019178,2]
[349849672,1737460238976,-609.4,0.00019272,2]
[349849673,1737460238986,-5236.81,0.00019339,2]
[349849674,1737460238996,-999.99,0.00019339,2]
[349849675,1737460239005,-150.99,0.00019339,2]
[349849676,1737460239015,-150.99,0.00019339,2]
[349849677,1737460239025,-1282.91993741,0.00019392,2]
[349849678,1737460239033,-3065.31701032,0.00019392,2]
[349849679,1737460239045,-5163.29429727,0.00019392,2]
[349849681,1737460239054,-944.15,0.0001945,2]
[349849682,1737460239063,-500.0,0.0001945,2]
[349849684,1737460239074,-500.0,0.0001945,2]
[349849686,1737460239084,-500.0,0.0001945,2]
[349849688,1737460239093,-603.35,0.0001945,2]
[349849690,1737460239103,-500.0,0.0001945,2]
[349849692,1737460239113,-500.0,0.0001945,2]
[349849694,1737460239123,-500.0,0.0001945,2]
[349849696,1737460239132,-500.0,0.0001945,2]
[349849698,1737460239142,-504.48781793,0.0001945,2]
[349849700,1737460239151,-500.0,0.0001945,2]
[349849702,1737460239160,-500.0,0.0001945,2]
[349849704,1737460239169,-500.0,0.0001945,2]
[349849706,1737460239178,-500.0,0.0001945,2]
[349849708,1737460239187,-500.0,0.0001945,2]
[349849710,1737460239197,-500.0,0.0001945,2]
[349849712,1737460239206,-500.0,0.0001945,2]
[349849714,1737460239215,-500.0,0.0001945,2]
[349849715,1737460239225,-500.0,0.0001945,2]
[349849716,1737460239234,-308.46439824,0.0001945,2]
[349849717,1737460239243,-500.0,0.0001945,2]
[349849718,1737460239252,-500.0,0.0001945,2]
[349849719,1737460239261,-500.0,0.0001945,2]
[349849720,1737460239271,-500.0,0.0001945,2]
[349849721,1737460239280,-500.0,0.0001945,2]
[349849723,1737460239289,-500.0,0.0001945,2]
[349849725,1737460239298,-500.0,0.0001945,2]
[349849727,1737460239308,-500.0,0.0001945,2]
[349849729,1737460239317,-500.0,0.0001945,2]
[349849731,1737460239328,-500.0,0.0001945,2]
[349849733,1737460239337,-500.0,0.0001945,2]
[349849735,1737460239346,-500.0,0.0001945,2]
[349849737,1737460239355,-500.0,0.0001945,2]
[349849739,1737460239364,-500.0,0.0001945,2]
[349849741,1737460239374,-500.0,0.0001945,2]
[349849743,1737460239383,-500.0,0.0001945,2]
[349849745,1737460239392,-500.0,0.0001945,2]
[349849747,1737460239402,-500.0,0.0001945,2]
[349849749,1737460239411,-500.0,0.0001945,2]
[349849751,1737460239420,-500.0,0.0001945,2]
[349849753,1737460239429,-500.0,0.0001945,2]
[349849755,1737460239438,-500.0,0.0001945,2]
[349849757,1737460239448,-499.92743079,0.0001945,2]
[349849759,1737460239457,-500.0,0.0001945,2]
[349849761,1737460239466,-500.0,0.0001945,2]
[349849763,1737460239475,-500.0,0.0001945,2]
[349849765,1737460239485,-520.35132754,0.0001945,2]
[349849767,1737460239495,-500.0,0.0001945,2]
[349849769,1737460239504,-506.42984293,0.0001945,2]
[349849771,1737460239513,-500.0,0.0001945,2]
[349849774,1737460239529,-500.0,0.0001945,2]
[349849776,1737460239543,-500.0,0.0001945,2]
[349849778,1737460239553,-500.0,0.0001945,2]
[349849780,1737460239563,-500.0,0.0001945,2]
[349849782,1737460239574,-500.0,0.0001945,2]
[349849784,1737460239586,-500.0,0.0001945,2]
[349849787,1737460239596,-964.5,0.0001945,2]
[349849789,1737460239607,-500.0,0.0001945,2]
[349849791,1737460239617,-500.0,0.0001945,2]
[349849793,1737460239626,-500.0,0.0001945,2]
[349849795,1737460239636,-500.0,0.0001945,2]
[349849796,1737460239646,-500.0,0.0001945,2]
[349849797,1737460239656,-519.77549773,0.0001945,2]
[349849798,1737460239666,-613.94,0.0001945,2]
[349849799,1737460239676,-573.0,0.0001945,2]
[349849800,1737460239687,-500.0,0.0001945,2]
[349849801,1737460239698,-1879.51,0.0001945,2]
[349849802,1737460239707,-500.0,0.0001945,2]
[349849803,1737460239717,-500.0,0.0001945,2]
[349849804,1737460239727,-500.0,0.0001945,2]
[349849805,1737460239737,-1460.06,0.0001945,2]
[349849806,1737460239747,-500.0,0.0001945,2]
[349849807,1737460239757,-1000.0,0.0001945,2]
[349849808,1737460239767,-233.2425754,0.0001945,2]
[349849809,1737460239777,-500.0,0.0001945,2]
[349849810,1737460239787,-641.48,0.0001945,2]
[349849811,1737460239797,-579.03,0.0001945,2]
[349849812,1737460239807,-500.0,0.0001945,2]
[349849813,1737460239817,-500.0,0.0001945,2]
[349849814,1737460239829,-804.49,0.0001945,2]
[349849815,1737460239839,-500.0,0.0001945,2]
[349849816,1737460239849,-500.0,0.0001945,2]
[349849817,1737460239860,-945.25,0.0001945,2]
[349849818,1737460239870,-500.0,0.0001945,2]
[349849819,1737460239886,-582.47,0.0001945,2]
[349849820,1737460239897,-500.0,0.0001945,2]
[349849821,1737460239907,-1017.32,0.0001945,2]
[349849822,1737460239919,-500.0,0.0001945,2]
[349849823,1737460239929,-500.0,0.0001945,2]
[349849824,1737460239940,-521.69385514,0.0001945,2]
[349849825,1737460239951,-500.0,0.0001945,2]
[349849826,1737460239961,-500.0,0.0001945,2]
[349849827,1737460239972,-500.0,0.0001945,2]
[349849828,1737460239982,-1107.86,0.0001945,2]
[349849829,1737460239993,-686.06,0.0001945,2]
[349849830,1737460240003,-500.0,0.0001945,2]
[349849831,1737460240013,-500.0,0.0001945,2]
[349849832,1737460240023,-500.0,0.0001945,2]
[349849833,1737460240033,-500.0,0.0001945,2]
[349849834,1737460240044,-500.0,0.0001945,2]
[349849835,1737460240054,-500.0,0.0001945,2]
[349849836,1737460240064,-500.0,0.0001945,2]
[349849837,1737460240075,-500.0,0.0001945,2]
[349849838,1737460240085,-1100.21,0.0001945,2]
[349849839,1737460240095,-500.0,0.0001945,2]
[349849840,1737460240105,-500.0,0.0001945,2]
[349849841,1737460240115,-500.0,0.0001945,2]
[349849842,1737460240125,-500.0,0.0001945,2]
[349849844,1737460240136,-500.0,0.0001945,2]
[349849845,1737460240146,-500.0,0.0001945,2]
[349849846,1737460240155,-500.0,0.0001945,2]
[349849847,1737460240164,-500.0,0.0001945,2]
[349849848,1737460240174,-500.0,0.0001945,2]
[349849849,1737460240185,-500.0,0.0001945,2]
[349849850,1737460240195,-500.0,0.0001945,2]
[349849851,1737460240206,-500.0,0.0001945,2]
[349849852,1737460240216,-500.0,0.0001945,2]
[349849853,1737460240226,-500.0,0.0001945,2]
[349849854,1737460240236,-500.0,0.0001945,2]
[349849855,1737460240246,-500.0,0.0001945,2]
[349849856,1737460240256,-500.0,0.0001945,2]
[349849857,1737460240266,-500.0,0.0001945,2]
[349849858,1737460240276,-500.0,0.0001945,2]
[349849859,1737460240285,-500.0,0.0001945,2]
[349849860,1737460240295,-500.0,0.0001945,2]
[349849861,1737460240304,-500.0,0.0001945,2]
[349849862,1737460240314,-730.65,0.0001945,2]
[349849863,1737460240324,-500.0,0.0001945,2]
[349849864,1737460240334,-500.0,0.0001945,2]
[349849865,1737460240343,-500.0,0.0001945,2]
[349849866,1737460240353,-1117.0,0.0001945,2]
[349849867,1737460240362,-500.0,0.0001945,2]
[349849868,1737460240372,-500.0,0.0001945,2]
[349849869,1737460240382,-991.65,0.0001945,2]
[349849870,1737460240391,-500.0,0.0001945,2]
[349849871,1737460240401,-500.0,0.0001945,2]
[349849872,1737460240411,-257.25992266,0.0001945,2]
[349849873,1737460240421,-500.0,0.0001945,2]
[349849874,1737460240431,-500.0,0.0001945,2]
[349849875,1737460240440,-1243.97,0.0001945,2]
[349849876,1737460240450,-501.75261907,0.0001945,2]
[349849877,1737460240459,-48880.83137282,0.00019451,2]
[349849878,1737460240703,-84964.41171329,0.00019451,2]
[349849879,1737460240713,-502.70107351,0.00019451,2]
[349849880,1737460240723,-209.66801138,0.00019451,2]
[349849881,1737460240733,-500.0,0.00019451,2]
[349849882,1737460240742,-500.0,0.00019451,2]
[349849883,1737460240751,-502.26696206,0.00019451,2]
[349849884,1737460240761,-503.23254912,0.00019451,2]
[349849885,1737460240771,-503.8115263,0.00019451,2]
[349849886,1737460240781,-500.7610091,0.00019451,2]
[349849887,1737460240790,-500.0,0.00019451,2]
[349849888,1737460240800,-406.1687644,0.00019451,2]
[349849889,1737460240809,-500.0,0.00019451,2]
[349849890,1737460240819,-500.0,0.00019451,2]
[349849891,1737460240829,-500.0,0.00019451,2]
[349849892,1737460240839,-500.0,0.00019451,2]
[349849893,1737460240849,-500.0,0.00019451,2]
[349849894,1737460240858,-394.58568407,0.00019451,2]
[349849895,1737460240867,-500.0,0.00019451,2]
[349849896,1737460240878,-500.0,0.00019451,2]
[349849897,1737460240889,-502.38618923,0.00019451,2]
[349849898,1737460240899,-500.0,0.00019451,2]
[349849900,1737460240908,-500.0,0.00019451,2]
[349849902,1737460240917,-300.0,0.00019451,2]
[349849904,1737460240928,-502.61321897,0.00019451,2]
[349849906,1737460240937,-500.0,0.00019451,2]
[349849908,1737460240946,-380.30980853,0.00019451,2]
[349849910,1737460240956,-504.03037015,0.00019451,2]
[349849912,1737460240966,-502.2366143,0.00019451,2]
[349849914,1737460240976,-596.0158765,0.00019451,2]
[349849916,1737460240985,-508.27334309,0.00019451,2]
[349849918,1737460240995,-600.75356257,0.00019451,2]
[349849920,1737460241004,-500.51862182,0.00019451,2]
[349849922,1737460241013,-586.01989817,0.00019451,2]
[349849930,1737460241078,-500.0,0.00019451,2]
[349849932,1737460241088,-501.91060078,0.00019451,2]
[349849934,1737460241097,-500.0,0.00019451,2]
[349849936,1737460241106,-524.10212941,0.00019452,2]
[349849938,1737460241115,-500.0,0.00019452,2]
[349849940,1737460241124,-500.0,0.00019452,2]
[349849942,1737460241133,-500.0,0.00019452,2]
[349849944,1737460241142,-500.0,0.00019452,2]
[349849946,1737460241151,-510.13466059,0.00019452,2]
[349849948,1737460241160,-500.0,0.00019452,2]
[349849950,1737460241169,-500.0,0.00019452,2]
[349849952,1737460241178,-500.0,0.00019452,2]
[349849954,1737460241187,-500.0,0.00019452,2]
[349849956,1737460241196,-193.88,0.00019452,2]
[349849958,1737460241205,-500.0,0.00019452,2]
[349849960,1737460241214,-500.0,0.00019452,2]
[349849961,1737460241223,-500.0,0.00019452,2]
[349849963,1737460241232,-500.0,0.00019452,2]
[349849965,1737460241242,-500.0,0.00019452,2]
[349849967,1737460241251,-500.0,0.00019452,2]
[349849969,1737460241260,-321.46,0.00019452,2]
[349849971,1737460241269,-500.0,0.00019452,2]
[349849973,1737460241278,-500.0,0.00019452,2]
[349849975,1737460241287,-500.0,0.00019452,2]
[349849977,1737460241295,-500.0,0.00019452,2]
[349849979,1737460241304,-500.0,0.00019452,2]
[349849981,1737460241314,-244.07100294,0.00019452,2]
[349849983,1737460241326,-508.10586194,0.00019452,2]
[349849985,1737460241335,-500.0,0.00019452,2]
[349849987,1737460241344,-500.0,0.00019452,2]
[349849989,1737460241353,-500.0,0.00019452,2]
[349849991,1737460241362,-517.83537555,0.00019452,2]
[349849993,1737460241372,-500.0,0.00019452,2]
[349849995,1737460241381,-500.0,0.00019452,2]
[349849996,1737460241390,-500.0,0.00019452,2]
[349849997,1737460241399,-500.0,0.00019452,2]
[349849998,1737460241409,-500.0,0.00019452,2]
[349849999,1737460241418,-500.0,0.00019452,2]
[349850000,1737460241428,-207.73558751,0.00019452,2]
[349850001,1737460241442,-292.26441249,0.00019452,2]
[349850002,1737460241451,-284.20867363,0.00019452,2]
[349850003,1737460241463,-215.79132637,0.00019452,2]
[349850004,1737460241472,-278.32865363,0.00019452,2]
[349850005,1737460242229,-221.67134637,0.00019452,2]
[349850006,1737460242238,-366.64124711,0.00019452,2]
[349850007,1737460242250,-133.35875289,0.00019452,2]
[349850008,1737460242259,-500.0,0.00019452,2]
[349850009,1737460242268,-500.0,0.00019452,2]
[349850010,1737460242277,-500.0,0.00019452,2]
[349850011,1737460242287,-500.0,0.00019452,2]
[349850012,1737460242296,-500.0,0.00019452,2]
[349850013,1737460242305,-500.0,0.00019452,2]
[349850014,1737460242314,-500.0,0.00019452,2]
[349850015,1737460242323,-190.37264711,0.00019452,2]
[349850016,1737460242344,-309.62735289,0.00019452,2]
[349850017,1737460242354,-500.0,0.00019452,2]
[349850018,1737460242363,-500.0,0.00019452,2]
[349850019,1737460242372,-500.0,0.00019452,2]
[349850020,1737460242381,-500.0,0.00019452,2]
[349850021,1737460242391,-500.0,0.00019452,2]
[349850022,1737460242400,-500.0,0.00019452,2]
[349850023,1737460242409,-500.0,0.00019452,2]
[349850024,1737460242418,-500.0,0.00019452,2]
[349850025,1737460242427,-566.28211598,0.00019452,2]
[349850026,1737460242436,-500.0,0.00019452,2]
[349850027,1737460242445,-500.0,0.00019452,2]
[349850028,1737460242454,-500.0,0.00019452,2]
[349850029,1737460242463,-500.0,0.00019452,2]
[349850030,1737460242473,-500.0,0.00019452,2]
[349850031,1737460242482,-424.09053113,0.00019452,2]
[349850032,1737460242494,-75.90946887,0.00019452,2]
[349850033,1737460242503,-500.0,0.00019452,2]
[349850034,1737460242512,-500.0,0.00019452,2]
[349850035,1737460242522,-444.09053113,0.00019452,2]
[349850036,1737460242542,-55.90946887,0.00019452,2]
[349850037,1737460242551,-500.0,0.00019452,2]
[349850038,1737460242561,-500.0,0.00019452,2]
[349850039,1737460242570,-500.0,0.00019452,2]
[349850040,1737460242582,-500.0,0.00019452,2]
[349850041,1737460242592,-207.63022035,0.00019452,2]
[349850042,1737460242602,-500.0,0.00019452,2]
[349850043,1737460242611,-356.55439078,0.00019452,2]
[349850044,1737460242623,-143.44560922,0.00019452,2]
[349850045,1737460242632,-500.0,0.00019452,2]
[349850046,1737460242642,-298.09392554,0.00019452,2]
[349850047,1737460242654,-201.90607446,0.00019452,2]
[349850048,1737460242663,-569.97207497,0.00019452,2]
[349850049,1737460242673,-500.0,0.00019452,2]
[349850050,1737460242682,-515.08856061,0.00019452,2]
[349850051,1737460242692,-627.45,0.00019452,2]
[349850052,1737460242701,-500.0,0.00019452,2]
[349850053,1737460242710,-500.0,0.00019452,2]
[349850054,1737460242720,-500.0,0.00019452,2]
[349850055,1737460242730,-513.07244045,0.00019452,2]
[349850056,1737460242739,-500.0,0.00019452,2]
[349850057,1737460242749,-500.0,0.00019452,2]
[349850058,1737460242758,-500.0,0.00019452,2]
[349850059,1737460242768,-500.0,0.00019452,2]
[349850060,1737460242777,-500.0,0.00019452,2]
[349850061,1737460242787,-500.0,0.00019452,2]
[349850062,1737460242797,-500.0,0.00019452,2]
[349850063,1737460242806,-500.0,0.00019452,2]
[349850064,1737460242816,-500.0,0.00019452,2]
[349850065,1737460242826,-500.0,0.00019452,2]
[349850066,1737460242836,-500.0,0.00019452,2]
[349850067,1737460242846,-500.0,0.00019452,2]
[349850068,1737460242856,-43.20953657,0.00019452,2]
[349850069,1737460242869,-456.79046343,0.00019452,2]
[349850070,1737460242879,-500.0,0.00019452,2]
[349850071,1737460242892,-483.19467329,0.00019452,2]
[349850072,1737460242902,-500.0,0.00019452,2]
[349850073,1737460242912,-500.0,0.00019452,2]
[349850074,1737460242923,-500.0,0.00019452,2]
[349850075,1737460242932,-500.0,0.00019452,2]
[349850077,1737460242942,-500.0,0.00019452,2]
[349850078,1737460242952,-500.0,0.00019452,2]
[349850079,1737460242963,-500.0,0.00019452,2]
[349850080,1737460242975,-500.0,0.00019452,2]
[349850081,1737460242985,-500.0,0.00019452,2]
[349850082,1737460242996,-500.0,0.00019452,2]
[349850083,1737460243007,-500.0,0.00019452,2]
[349850084,1737460243016,-500.0,0.00019452,2]
[349850085,1737460243026,-270.27783878,0.00019452,2]
[349850086,1737460243036,-500.0,0.00019452,2]
[349850088,1737460243045,-526.32024082,0.00019452,2]
[349850089,1737460243055,-500.0,0.00019452,2]
[349850092,1737460243066,-500.0,0.00019452,2]
[349850095,1737460243076,-500.0,0.00019452,2]
[349850098,1737460243087,-500.0,0.00019452,2]
[349850100,1737460243097,-500.0,0.00019452,2]
[349850102,1737460243106,-500.0,0.00019452,2]
[349850105,1737460243115,-500.0,0.00019452,2]
[349850108,1737460243125,-500.0,0.00019452,2]
[349850110,1737460243134,-500.0,0.00019452,2]
[349850112,1737460243143,-500.0,0.00019452,2]
[349850115,1737460243154,-500.0,0.00019452,2]
[349850118,1737460243163,-500.0,0.00019452,2]
[349850120,1737460243172,-500.0,0.00019452,2]
[349850123,1737460243182,-500.0,0.00019452,2]
[349850125,1737460243192,-494.06014899,0.00019452,2]
[349850127,1737460243204,-5.93985101,0.00019452,2]
[349850130,1737460243215,-505.53869558,0.00019452,2]
[349850132,1737460243224,-201.34399345,0.00019452,2]
[349850134,1737460243234,-500.0,0.00019452,2]
[349850136,1737460243244,-504.37012111,0.00019452,2]
[349850138,1737460243254,-500.0,0.00019452,2]
[349850140,1737460243264,-500.0,0.00019452,2]
[349850142,1737460243274,-500.0,0.00019452,2]
[349850144,1737460243285,-162.50461615,0.00019452,2]
[349850147,1737460243295,-500.0,0.00019452,2]
[349850148,1737460243305,-500.0,0.00019452,2]
[349850150,1737460243315,-500.0,0.00019452,2]
[349850151,1737460243325,-500.0,0.00019452,2]
[349850152,1737460243337,-500.0,0.00019452,2]
[349850153,1737460243347,-500.0,0.00019452,2]
[349850154,1737460243357,-500.0,0.00019452,2]
[349850155,1737460243367,-500.0,0.00019452,2]
[349850156,1737460243377,-500.0,0.00019452,2]
[349850157,1737460243387,-500.0,0.00019452,2]
[349850158,1737460243396,-500.0,0.00019452,2]
[349850159,1737460243406,-500.0,0.00019452,2]
[349850160,1737460243415,-500.0,0.00019452,2]
[349850161,1737460243424,-500.0,0.00019452,2]
[349850162,1737460243434,-500.0,0.00019452,2]
[349850163,1737460243443,-420.03952231,0.00019452,2]
[349850164,1737460243453,-500.0,0.00019452,2]
[349850165,1737460243464,-500.0,0.00019452,2]
[349850166,1737460243473,-500.0,0.00019452,2]
[349850167,1737460243483,-500.0,0.00019452,2]
[349850168,1737460243493,-500.0,0.00019452,2]
[349850169,1737460243502,-148.99732079,0.00019452,2]
[349850170,1737460243519,-351.00267921,0.00019452,2]
[349850171,1737460243530,-500.0,0.00019452,2]
[349850172,1737460243539,-500.0,0.00019452,2]
[349850173,1737460243549,-500.0,0.00019452,2]
[349850174,1737460243559,-500.0,0.00019452,2]
[349850175,1737460243569,-516.93864431,0.00019452,2]
[349850176,1737460243581,-500.0,0.00019452,2]
[349850177,1737460243591,-500.0,0.00019452,2]
[349850178,1737460243600,-500.0,0.00019452,2]
[349850179,1737460243611,-500.0,0.00019452,2]
[349850180,1737460243620,-500.0,0.00019452,2]
[349850181,1737460243631,-500.0,0.00019452,2]
[349850182,1737460243641,-500.0,0.00019452,2]
[349850183,1737460243651,-500.0,0.00019452,2]
[349850184,1737460243662,-500.0,0.00019452,2]
[349850185,1737460243671,-327.17127139,0.00019452,2]
[349850187,1737460243684,-172.82872861,0.00019452,2]
[349850189,1737460243694,-500.0,0.00019452,2]
[349850191,1737460243703,-510.13617525,0.00019452,2]
[349850193,1737460243714,-500.0,0.00019452,2]
[349850195,1737460243723,-393.23509614,0.00019452,2]
[349850223,1737460243963,-504.63,0.00019178,2]
[349850225,1737460243974,-106.76490386,0.00019452,2]
[349850227,1737460243984,-500.97,0.00019452,2]
[349850229,1737460243996,-500.0,0.00019452,2]
[349850231,1737460244006,-628.80243118,0.00019452,2]
[349850234,1737460244016,-500.0,0.00019452,2]
[349850236,1737460244026,-500.0,0.00019452,2]
[349850238,1737460244036,-500.0,0.00019452,2]
[349850240,1737460244046,-300.0,0.00019452,2]
[349850242,1737460244057,-105.26178496,0.00019452,2]
[349850247,1737460244095,-446.28770876,0.00019452,2]
[349850249,1737460244105,-500.0,0.00019452,2]
[349850251,1737460244114,-500.0,0.00019452,2]
[349850253,1737460244124,-500.0,0.00019452,2]
[349850255,1737460244133,-500.0,0.00019452,2]
[349850257,1737460244143,-500.0,0.00019452,2]
[349850259,1737460244153,-500.0,0.00019452,2]
[349850261,1737460244163,-500.0,0.00019452,2]
[349850263,1737460244172,-500.0,0.00019452,2]
[349850265,1737460244182,-500.0,0.00019452,2]
[349850267,1737460244192,-508.33335123,0.00019452,2]